fUST/lending_fUST_20240628
["ID","MTS","AMOUNT","RATE_DAILY","PERIOD"]
[330500382,1719519047485,-500.0,0.00043835,120]
[330500383,1719519047494,-500.0,0.00043835,120]
[330500384,1719519047503,-500.0,0.00043835,120]
[330500385,1719519047513,-500.0,0.00043835,120]
[330500386,1719519047522,-15934.73,0.00043835,120]
[330500387,1719519047532,-500.0,0.00043835,120]
[330500388,1719519047541,-1603.99,0.00043835,120]
[330500389,1719519047550,-500.0,0.00043835,120]
[330500390,1719519047559,-500.0,0.00043835,120]
[330500391,1719519047568,-500.0,0.00043835,120]
[330500392,1719519047577,-510.82172025,0.00043835,120]
[330500393,1719519047586,-727.58,0.00043835,120]
[330500394,1719519047595,-509.12391914,0.00043835,120]
[330500395,1719519047604,-500.0,0.00043835,120]
[330500396,1719519047614,-500.0,0.00043835,120]
[330500397,1719519047623,-500.0,0.00043835,120]
[330500398,1719519047632,-524.69595265,0.00043835,120]
[330500399,1719519047641,-500.0,0.00043835,120]
[330500400,1719519047650,-500.0,0.00043835,120]
[330500401,1719519047660,-500.0,0.00043835,120]
[330500402,1719519047670,-1565.37,0.00043835,120]
[330500403,1719519047681,-500.0,0.00043835,120]
[330500404,1719519047693,-7407.08,0.00043835,120]
[330500405,1719519047704,-7407.08,0.00043835,120]
[330500406,1719519047716,-500.0,0.00043835,120]
[330500407,1719519047726,-500.0,0.00043835,120]
[330500408,1719519047736,-7407.08,0.00043835,120]
[330500409,1719519047746,-7407.08,0.00043835,120]
[330500410,1719519047756,-500.0,0.00043835,120]
[330500411,1719519047766,-7407.08,0.00043835,120]
[330500412,1719519047776,-500.0,0.00043835,120]
[330500413,1719519047786,-7407.08,0.00043835,120]
[330500414,1719519047795,-7407.08,0.00043835,120]
[330500415,1719519047804,-7407.08,0.00043835,120]
[330500416,1719519047813,-151.0,0.00043835,14]
[330500417,1719519047823,-151.0,0.00043835,14]
[330500418,1719519047832,-7407.08,0.00043835,120]
[330500419,1719519047842,-151.0,0.00043835,14]
[330500420,1719519047851,-151.0,0.00043835,14]
[330500421,1719519047860,-500.0,0.00043835,30]
[330500422,1719519047869,-215.606084,0.00043835,14]
[330500423,1719519047878,-7407.08,0.00043835,120]
[330500424,1719519047888,-500.0,0.00043835,120]
[330500425,1719519047897,-7407.08,0.00043835,120]
[330500426,1719519047906,-7407.08,0.00043835,120]
[330500427,1719519047915,-503.81985317,0.00043835,120]
[330500428,1719519047924,-6445.23,0.00043835,120]
[330500429,1719519047933,-7407.08,0.00043835,120]
[330500430,1719519047942,-500.0,0.00043835,120]
[330500431,1719519047951,-4533.24447423,0.00043835,120]
[330500432,1719519048306,-153.0,0.0004,2]
[330500433,1719519048319,-586.2605556,0.00041562,2]
[330500434,1719519048329,-2873.83552577,0.00043835,120]
[330500435,1719519048338,-7407.08,0.00043835,120]
[330500436,1719519048347,-500.0,0.00043835,120]
[330500437,1719519048358,-500.0,0.00043835,120]
[330500438,1719519048367,-500.0,0.00043835,120]
[330500439,1719519048377,-7407.08,0.00043835,120]
[330500440,1719519048387,-500.0,0.00043835,120]
[330500441,1719519048397,-7407.08,0.00043835,120]
[330500442,1719519048406,-842.75,0.00043835,120]
[330500443,1719519048415,-7407.08,0.00043835,120]
[330500444,1719519048425,-1897.32741606,0.00043835,120]
[330500445,1719519439183,228.56676235,0.00018899,2]
[330500446,1719519489204,328.51731347,0.00016255,2]
[330500447,1719519514158,156.3627861,0.00018899,30]
[330500448,1719519533163,10369.44187021,0.00014998,2]
[330500449,1719519619511,15275.43887574,0.00014998,2]
[330500450,1719519619538,4076.53259716,0.00014998,2]
[330500451,1719519625765,156.3627861,0.00014998,30]
[330500452,1719519670269,156.3627861,0.00018179,30]
[330500453,1719519672968,6872.35083866,0.00014998,2]
[330500454,1719519721489,277.99373405,0.00014999,2]
[330500455,1719519725267,156.3627861,0.00018179,30]
[330500456,1719519734505,1568.46393602,0.00014999,2]
[330500457,1719519735465,303.16898958,0.00014999,2]
[330500458,1719519737653,239.66852687,0.00014999,2]
[330500459,1719519740060,154.83742071,0.00014999,2]
[330500460,1719519741802,1284.46803157,0.00014999,2]
[330500461,1719519748303,1102.77481401,0.00015,2]
[330500462,1719519778278,156.3627861,0.0001818,30]
[330500463,1719519813142,939.28321263,0.00014999,2]
[330500464,1719519853224,477.00236967,0.00014999,2]
[330500465,1719519870368,172.96939093,0.00014999,2]
[330500466,1719519885644,597.95617303,0.00014999,2]
[330500467,1719519894593,661.02191693,0.00014999,2]
[330500468,1719519902241,159.21578068,0.00014999,2]
[330500469,1719519918318,156.3627861,0.0001818,30]
[330500470,1719519921673,157.94776583,0.00014999,2]
[330500471,1719519933144,-161.20318611,0.00016255,2]
[330500472,1719519944137,196.29260031,0.00014999,2]
[330500473,1719519964148,1313.50270188,0.00014999,2]
[330500474,1719519964278,155.17667305,0.00014999,2]
[330500475,1719519978835,842.74466502,0.00014999,2]
[330500476,1719519993396,155.22177039,0.00014999,2]
[330500477,1719519995560,335.18517878,0.00015,2]
[330500478,1719519996647,4330.41809002,0.00014999,2]
[330500479,1719519999978,893.56049328,0.00014999,2]
[330500480,1719520026098,-202.88634143,0.00018179,2]
[330500481,1719520028071,382.61307245,0.00014999,2]
[330500482,1719520033100,-153.80876398,0.00018179,2]
[330500483,1719520033141,-314.42948756,0.00018179,2]
[330500484,1719520033161,-299.79665734,0.0001818,2]
[330500485,1719520037108,-872.95089987,0.0001818,2]
[330500486,1719520037128,-48.7603893,0.00018899,2]
[330500487,1719520045246,-768.73055895,0.00018899,2]
[330500488,1719520045265,-154.93017013,0.00019165,2]
[330500489,1719520045298,-162.3004007,0.00021096,2]
[330500490,1719520045324,-162.300387,0.00021096,2]
[330500491,1719520045346,-84.19333967,0.00022566,2]
[330500492,1719520145124,-4456.1870306,0.00016255,2]
[330500493,1719520149155,-2515.80024244,0.00016255,2]
[330500494,1719520149176,-817.49094825,0.00016255,2]
[330500495,1719520149196,-189.0849716,0.00021917,2]
[330500496,1719520149215,-191.09191803,0.00021917,2]
[330500497,1719520149235,-182.33432574,0.00021917,2]
[330500498,1719520149254,-300.0,0.00022429,2]
[330500499,1719520149274,-300.0,0.00022429,2]
[330500500,1719520149294,-293.10784911,0.0002243,2]
[330500501,1719520149313,-2915.80666033,0.00022566,2]
[330500502,1719520149332,-159.7764587,0.00022579,2]
[330500503,1719520149360,-348.383494,0.00023414,2]
[330500504,1719520149381,-153.81210842,0.00024221,2]
[330500505,1719520149402,-153.81210842,0.00024278,2]
[330500506,1719520149422,-287.0,0.00024362,2]
[330500507,1719520149441,-156.23491961,0.00024478,2]
[330500508,1719520149461,-154.1268717,0.00024636,2]
[330500509,1719520149481,-420.0,0.00024672,2]
[330500510,1719520149501,-250.0,0.00024734,2]
[330500511,1719520149521,-154.1268717,0.00025049,2]
[330500512,1719520149541,-233.8563631,0.00025127,2]
[330500513,1719520149560,-156.72869475,0.00025158,2]
[330500514,1719520149581,-156.23491962,0.00025281,2]
[330500515,1719520149601,-156.72869475,0.00025994,2]
[330500516,1719520149621,-156.72869475,0.00026021,2]
[330500517,1719520149641,-153.81210842,0.00026066,2]
[330500518,1719520149661,-156.72869475,0.000262,2]
[330500519,1719520149685,-163.8052763,0.00026416,2]
[330500520,1719520149704,-152.08878095,0.00026442,2]
[330500521,1719520149724,-404.0,0.00027139,2]
[330500522,1719520149745,-156.72869475,0.00027204,2]
[330500523,1719520149768,-228.10280662,0.00027352,2]
[330500524,1719520149788,-159.76189923,0.00027421,2]
[330500525,1719520149810,-156.72869475,0.00027811,2]
[330500526,1719520149831,-153.81210842,0.0002825,2]
[330500527,1719520149853,-154.1268717,0.00028709,2]
[330500528,1719520149874,-153.0,0.00029061,2]
[330500529,1719520149894,-116.44459006,0.00029251,2]
[330500530,1719520150260,156.3627861,0.00027352,30]
[330500531,1719520155214,293.10784911,0.00021917,2]
[330500532,1719520166084,-37.36751836,0.00029251,2]
[330500533,1719520166105,-156.72869475,0.00029394,2]
[330500534,1719520166126,-154.1268717,0.00029535,2]
[330500535,1719520166147,-154.1268717,0.00029617,2]
[330500536,1719520166166,-286.73281803,0.0003,4]
[330500537,1719520166186,-153.81210842,0.00030286,7]
[330500538,1719520188955,153.0,0.00028565,2]
[330500539,1719520203025,182.33432574,0.00027352,2]
[330500540,1719520205754,459.60230293,0.00027352,2]
[330500541,1719520205794,357.88864532,0.00027352,2]
[330500605,1719520232359,-153.81210842,0.00030781,7]
[330500607,1719520232369,-1064.79578119,0.0003096,2]
[330500609,1719520232378,-196.0,0.00030961,2]
[330500611,1719520232387,-180.3972476,0.00030961,2]
[330500664,1719520238335,-24719.6027524,0.00030961,2]
[330500665,1719520238344,-794.34187887,0.00030986,2]
[330500666,1719520238353,-154.1268717,0.000312,7]
[330500667,1719520238363,-153.81210842,0.0003164,7]
[330500668,1719520238373,-154.1268717,0.00031749,7]
[330500669,1719520238382,-156.72869475,0.000323,7]
[330500670,1719520238393,-156.72869475,0.00032576,7]
[330500671,1719520238403,-162.300387,0.00032685,2]
[330500672,1719520238412,-159.76189923,0.00032835,7]
[330500673,1719520238422,-153.81210842,0.00033289,7]
[330500674,1719520238432,-154.1268717,0.00033351,7]
[330500675,1719520238442,-316.48782207,0.00033841,7]
[330500676,1719520238452,-1225.3858179,0.00033842,60]
[330500677,1719520238465,-42817.77749935,0.00033842,60]
[330500678,1719520238475,-794.34187883,0.00034138,2]
[330500679,1719520238484,-153.81210842,0.00034312,7]
[330500680,1719520238495,-12905.23511092,0.00034336,4]
[330500681,1719520238506,-276.06,0.0003453,3]
[330500682,1719520238515,-828.21,0.0003453,3]
[330500683,1719520238525,-3707.84,0.0003453,3]
[330500684,1719520238535,-3089.87,0.0003453,3]
[330500685,1719520238545,-10780.32780356,0.0003454,7]
[330500686,1719520238554,-17245.7516736,0.0003454,4]
[330500688,1719520238564,-154.1268717,0.00034591,7]
[330500690,1719520238573,-153.81210842,0.000346,7]
[330500692,1719520238583,-156.72869475,0.00034795,7]
[330500693,1719520238592,-156.72869475,0.00034893,7]
[330500694,1719520238601,-174.541409,0.00034995,2]
[330500696,1719520238611,-156.774861,0.00034995,2]
[330500697,1719520238620,-156.774861,0.00034995,2]
[330500698,1719520238629,-174.541409,0.00034995,2]
[330500700,1719520238639,-156.774861,0.00034995,2]
[330500702,1719520238648,-174.541409,0.00034995,2]
[330500703,1719520238658,-2709.72121891,0.00035,4]
[330500705,1719520238667,-348.383494,0.00035122,2]
[330500706,1719520238677,-153.81210842,0.0003524,7]
[330500708,1719520238688,-3247.80021622,0.00035259,4]
[330500709,1719520238702,-153.81210842,0.00035815,7]
[330500710,1719520238712,-552.12,0.000359,3]
[330500711,1719520238723,-1487.40194776,0.00036351,4]
[330500712,1719520238734,-156.72869475,0.0003669,7]
[330500713,1719520238743,-214.67086582,0.0003671,4]
[330500714,1719520238752,-156.72869476,0.00036743,7]
[330500715,1719520238762,-772.0,0.00037107,2]
[330500716,1719520238773,-154.12687179,0.00037116,7]
[330500717,1719520238782,-794.34187883,0.0003729,2]
[330500718,1719520238792,-932.60140374,0.00037807,4]
[330500719,1719520238802,-701.24961311,0.00037839,2]
[330500720,1719520238811,-825.99151127,0.00037899,4]
[330500721,1719520238821,-642.05782593,0.00037899,4]
[330500722,1719520238831,-516.72213415,0.00037999,4]
[330500723,1719520238840,-470.62851123,0.00037999,4]
[330500724,1719520238850,-6070.46433457,0.00038499,5]
[330500725,1719520238860,-17245.7516736,0.00038989,4]
[330500726,1719520238870,-152.08878095,0.00039107,7]
[330500727,1719520238879,-154.86836189,0.00039167,4]
[330500728,1719520238889,-154.85288667,0.00039177,4]
[330500729,1719520238899,-154.92458343,0.00039177,4]
[330500730,1719520238909,-153.81210855,0.00039267,7]
[330500731,1719520238918,-350.76834855,0.00039393,30]
[330500732,1719520238928,-155.02006626,0.00039393,4]
[330500733,1719520238937,-152.08878095,0.00039818,7]
[330500734,1719520238947,-151.2,0.00039901,15]
[330500735,1719520238957,-500.0,0.00039972,30]
[330500736,1719520238968,-500.0,0.00039972,35]
[330500737,1719520238978,-500.0,0.00039972,40]
[330500738,1719520238988,-500.0,0.00039972,45]
[330500739,1719520238998,-500.0,0.00039972,50]
[330500740,1719520239008,-500.0,0.00039972,55]
[330500741,1719520239017,-500.0,0.00039972,60]
[330500742,1719520239028,-500.0,0.00039972,65]
[330500743,1719520239038,-500.0,0.00039972,70]
[330500744,1719520239048,-167.18872723,0.00039972,75]
[330500745,1719520239058,-3604.97547637,0.00039988,2]
[330500746,1719520239068,-250.27791645,0.00039994,4]
[330500747,1719520239079,-275.2362278,0.00039999,4]
[330500748,1719520239090,-157.20552492,0.00039999,4]
[330500749,1719520239100,-154.83742071,0.00039999,4]
[330500750,1719520239111,-550.87874995,0.0004,30]
[330500751,1719520239121,-8528.48972142,0.0004,30]
[330500752,1719520239131,-772.0,0.00040107,2]
[330500753,1719520239141,-155.36783824,0.00040229,4]
[330500754,1719520239152,-194.98259822,0.00040229,4]
[330500755,1719520239162,-276.7,0.0004027,15]
[330500756,1719520239172,-155.38523359,0.00040278,4]
[330500757,1719520239183,-524.11142247,0.00040278,4]
[330500758,1719520239194,-794.34187883,0.00040442,28]
[330500759,1719520239204,-276.7,0.00040639,15]
[330500760,1719520239215,-373.67425734,0.00040807,4]
[330500761,1719520239225,-300.0,0.00040807,4]
[330500762,1719520239235,-550.0,0.00041,30]
[330500763,1719520239245,-8527.0,0.00041,30]
[330500764,1719520239255,-276.7,0.00041008,15]
[330500765,1719520239266,-594.0,0.000413,30]
[330500766,1719520239276,-270.37905555,0.00041314,4]
[330500767,1719520239287,-276.7,0.00041376,31]
[330500768,1719520239298,-276.7,0.00041745,31]
[330500769,1719520239308,-276.7,0.00042114,31]
[330500770,1719520239318,-276.7,0.00042483,31]
[330500771,1719520239329,-17245.7516736,0.00042539,5]
[330500772,1719520239340,-12192.73671771,0.00042549,2]
[330500773,1719520239351,-811.9182848,0.00042629,4]
[330500774,1719520239361,-3244.81,0.00042639,120]
[330500775,1719520239372,-276.7,0.00042851,31]
[330500776,1719520239382,-152.0,0.00042851,31]
[330500777,1719520239392,-3244.81,0.00042913,120]
[330500778,1719520239403,-403.21401882,0.00042958,4]
[330500779,1719520239414,-1967.45654607,0.00042999,30]
[330500780,1719520239425,-3444.10950613,0.00043,30]
[330500781,1719520239435,-772.0,0.00043107,2]
[330500782,1719520239446,-3244.81,0.00043187,120]
[330500783,1719520239456,-276.7,0.0004322,31]
[330500784,1719520239467,-152.0,0.0004322,31]
[330500785,1719520239477,-153.0,0.00043288,2]
[330500786,1719520239487,-153.0,0.00043288,2]
[330500787,1719520239498,-153.0,0.00043288,2]
[330500788,1719520239510,-3244.81,0.00043461,120]
[330500789,1719520239520,-411.6114014,0.00043562,2]
[330500790,1719520239530,-794.34187883,0.00043594,28]
[330500791,1719520239540,-154.82,0.000436,36]
[330500792,1719520239550,-154.82,0.000436,36]
[330500793,1719520239560,-308.47949848,0.00043608,7]
[330500794,1719520239570,-300.0,0.00043648,7]
[330500795,1719520239581,-500.0,0.000437,45]
[330500796,1719520239591,-250.0,0.000437,45]
[330500797,1719520239600,-250.0,0.000437,45]
[330500798,1719520239610,-34491.5033473,0.00043715,5]
[330500799,1719520239621,-68377.18828222,0.00043725,5]
[330500800,1719520239631,-2000.0,0.00043725,2]
[330500801,1719520239642,-3244.81,0.00043735,120]
[330500802,1719520239652,-5282.41580836,0.00043735,2]
[330500803,1719520239663,-14598.72711186,0.00043735,2]
[330500804,1719520239674,-252.0,0.000438,19]
[330500805,1719520239685,-159.21,0.00043824,7]
[330500806,1719520239698,-159.21,0.00043824,7]
[330500807,1719520239708,-159.21,0.00043824,7]
[330500808,1719520239718,-159.21,0.00043824,7]
[330500809,1719520239728,-159.21,0.00043824,7]
[330500810,1719520239739,-159.21,0.00043824,7]
[330500811,1719520239750,-159.21,0.00043824,7]
[330500812,1719520239760,-159.21,0.00043824,7]
[330500813,1719520239770,-244.581928,0.00043825,14]
[330500814,1719520239783,-151.0,0.00043825,14]
[330500815,1719520239794,-151.0,0.00043825,14]
[330500816,1719520239805,-438.571316,0.00043825,14]
[330500817,1719520239815,-438.571316,0.00043825,14]
[330500818,1719520239826,-151.0,0.00043825,14]
[330500819,1719520239835,-151.0,0.00043825,14]
[330500820,1719520239846,-151.0,0.00043825,14]
[330500821,1719520239855,-151.0,0.00043825,14]
[330500822,1719520239866,-151.0,0.00043825,14]
[330500823,1719520239876,-137966.013389,0.00043825,5]
[330500824,1719520239886,-5218.23836322,0.00043835,7]
[330500825,1719520239897,-502.05444183,0.00043835,120]
[330500826,1719520239907,-500.0,0.00043835,120]
[330500827,1719520239918,-324.52500861,0.00043835,3]
[330500828,1719520239929,-500.0,0.00043835,120]
[330500829,1719520239940,-4478.33542159,0.00043835,60]
[330500830,1719520239955,-4149.29427674,0.00043835,60]
[330500831,1719520239965,-500.0,0.00043835,120]
[330500832,1719520239975,-1228.53,0.00043835,120]
[330500833,1719520239985,-500.0,0.00043835,120]
[330500834,1719520239995,-500.0,0.00043835,120]
[330500835,1719520240006,-500.0,0.00043835,120]
[330500836,1719520240016,-500.0,0.00043835,120]
[330500837,1719520240026,-500.0,0.00043835,120]
[330500838,1719520240037,-500.0,0.00043835,120]
[330500844,1719520240167,-500.0,0.00043835,2]
[330500846,1719520240178,-653.81,0.00043835,120]
[330500847,1719520240188,-500.0,0.00043835,120]
[330500848,1719520240197,-500.0,0.00043835,120]
[330500849,1719520240207,-500.0,0.00043835,120]
[330500850,1719520240217,-500.0,0.00043835,120]
[330500851,1719520240227,-500.0,0.00043835,120]
[330500852,1719520240237,-172.5417969,0.00043835,120]
[330500855,1719520240281,-228.10280662,0.00043835,120]
[330500857,1719520240545,-210.22902618,0.00043615,4]
[330500858,1719520240556,-99.35539648,0.00043835,120]
[330500859,1719520240566,-307.08854779,0.00043835,120]
[330500860,1719520240576,-500.0,0.00043835,120]
[330500861,1719520240587,-500.0,0.00043835,120]
[330500862,1719520240596,-500.0,0.00043835,120]
[330500863,1719520240606,-500.0,0.00043835,120]
[330500864,1719520240616,-500.0,0.00043835,120]
[330500865,1719520240627,-500.0,0.00043835,120]
[330500866,1719520240637,-500.0,0.00043835,120]
[330500867,1719520240648,-500.0,0.00043835,120]
[330500868,1719520240658,-500.0,0.00043835,120]
[330500869,1719520240668,-500.0,0.00043835,120]
[330500870,1719520240678,-500.0,0.00043835,120]
[330500871,1719520240689,-647.17,0.00043835,120]
[330500872,1719520240705,-500.0,0.00043835,120]
[330500873,1719520240715,-500.0,0.00043835,120]
[330500874,1719520240726,-500.0,0.00043835,120]
[330500875,1719520240737,-500.0,0.00043835,120]
[330500876,1719520240747,-500.0,0.00043835,120]
[330500877,1719520240757,-500.0,0.00043835,120]
[330500878,1719520240767,-500.0,0.00043835,120]
[330500879,1719520240779,-500.0,0.00043835,7]
[330500880,1719520240789,-969.13,0.00043835,120]
[330500881,1719520240799,-240.41970725,0.00043835,120]
[330500882,1719520240808,-500.0,0.00043835,120]
[330500883,1719520240818,-500.0,0.00043835,120]
[330500884,1719520240827,-280.84693134,0.00043835,120]
[330500885,1719520240837,-500.0,0.00043835,120]
[330500886,1719520240847,-500.0,0.00043835,120]
[330500887,1719520240857,-500.0,0.00043835,120]
[330500888,1719520240867,-500.0,0.00043835,120]
[330500889,1719520240877,-613.28,0.00043835,120]
[330500890,1719520240887,-500.0,0.00043835,120]
[330500891,1719520240897,-500.0,0.00043835,120]
[330500892,1719520240907,-949.58,0.00043835,120]
[330500893,1719520240917,-500.0,0.00043835,120]
[330500894,1719520240927,-500.0,0.00043835,120]
[330500895,1719520240937,-500.0,0.00043835,120]
[330500896,1719520240947,-500.0,0.00043835,120]
[330500897,1719520240957,-500.0,0.00043835,120]
[330500898,1719520240967,-318.90391145,0.00043835,120]
[330500899,1719520240978,-500.0,0.00043835,120]
[330500900,1719520240988,-502.8911012,0.00043835,120]
[330500901,1719520240998,-500.0,0.00043835,120]
[330500902,1719520241008,-500.0,0.00043835,120]
[330500903,1719520241019,-500.0,0.00043835,120]
[330500904,1719520241029,-500.0,0.00043835,120]
[330500905,1719520241039,-500.0,0.00043835,20]
[330500906,1719520241050,-500.0,0.00043835,120]
[330500907,1719520241060,-500.0,0.00043835,120]
[330500908,1719520241070,-500.0,0.00043835,120]
[330500909,1719520241082,-500.0,0.00043835,120]
[330500910,1719520241095,-500.0,0.00043835,120]
[330500911,1719520241104,-510.66732589,0.00043835,120]
[330500912,1719520241114,-500.0,0.00043835,120]
[330500913,1719520241124,-500.0,0.00043835,120]
[330500914,1719520241134,-500.0,0.00043835,120]
[330500915,1719520241144,-500.0,0.00043835,120]
[330500916,1719520241153,-3599.8,0.00043835,120]
[330500917,1719520241163,-500.0,0.00043835,120]
[330500918,1719520241173,-644.25,0.00043835,2]
[330500919,1719520241184,-500.0,0.00043835,120]
[330500920,1719520241194,-500.0,0.00043835,120]
[330500921,1719520241203,-500.0,0.00043835,120]
[330500922,1719520241219,-160.0,0.00043835,5]
[330500923,1719520241228,-500.0,0.00043835,120]
[330500924,1719520241238,-500.0,0.00043835,120]
[330500925,1719520241247,-333.02151445,0.00043835,120]
[330500945,1719520243316,-214.67086582,0.00036351,4]
[330500947,1719520243326,-124.85413418,0.00039393,4]
[330500950,1719520243354,-30.55151869,0.00039393,4]
[330500952,1719520243364,-166.97848555,0.00043835,120]
[330500954,1719520243374,-500.0,0.00043835,120]
[330500956,1719520243384,-212.26999576,0.00043835,120]
[330501098,1719520246423,-526.08072875,0.0003671,4]
[330501099,1719520247020,-572.27563167,0.0003671,4]
[330501100,1719520247029,-150.683,0.00038089,2]
[330501101,1719520247038,-218.23031581,0.00043835,120]
[330501112,1719521143147,-253.75202765,0.00019898,2]
[330501114,1719521236106,-300.0,0.00018992,2]
[330501115,1719521236128,-300.0,0.00018992,2]
[330501116,1719521236149,-41.60986908,0.00018993,2]
[330501117,1719521245142,-2226.37349973,0.00018993,2]
[330501118,1719521249086,-157.53820426,0.00018993,2]
[330501119,1719521249115,-1371.72322828,0.00018993,2]
[330501120,1719521265833,297.14782549,0.00019898,30]
[330501121,1719521345091,-16905.25211595,0.00018993,2]
[330501122,1719521345112,-1117.23423752,0.00019898,2]
[330501123,1719521345133,-13386.27437388,0.00019898,2]
[330501124,1719521350163,-2838.27930826,0.00019898,2]
[330501125,1719521350185,-1577.5572453,0.00019898,2]
[330501126,1719521350204,-302.56273446,0.00019898,2]
[330501127,1719521350224,-477.11053626,0.00019987,2]
[330501128,1719521350245,-859.62,0.00019988,3]
[330501129,1719521350266,-30916.3126345,0.00019988,2]
[330501130,1719521350289,-18407.28212492,0.00019998,7]
[330501131,1719521350308,-134777.36406154,0.00019998,2]
[330501132,1719521353275,-132611.09459015,0.00019998,2]
[330501133,1719521353299,-1370.98626513,0.00020145,2]
[330501134,1719521353321,-1370.98626513,0.00020392,2]
[330501135,1719521353347,-1370.98626513,0.00020639,2]
[330501136,1719521353373,-1370.98626513,0.00020886,2]
[330501137,1719521353398,-193.870198,0.00021096,2]
[330501138,1719521353421,-162.300387,0.00021096,2]
[330501139,1719521353444,-166.666666,0.00021918,2]
[330501140,1719521353465,-154.82195475,0.00023968,2]
[330501141,1719521353486,-155.24601324,0.00024118,2]
[330501142,1719521353509,-172.82370418,0.00025002,2]
[330501143,1719521353530,-159.50123805,0.00025457,2]
[330501144,1719521353551,-160.0615789,0.00027199,2]
[330501145,1719521353572,-153.80876398,0.00028231,2]
[330501146,1719521353593,-172.82370418,0.00028429,2]
[330501147,1719521353616,-6183.26252689,0.00028882,3]
[330501148,1719521353638,-153.0,0.00028892,2]
[330501149,1719521353660,-153.0,0.00028892,2]
[330501150,1719521353683,-153.0,0.00028892,2]
[330501151,1719521353705,-153.0,0.00028892,2]
[330501152,1719521353728,-153.0,0.00028892,2]
[330501153,1719521353750,-153.0,0.00028892,2]
[330501154,1719521353772,-153.0,0.00028892,2]
[330501155,1719521353793,-153.0,0.00028892,2]
[330501156,1719521353815,-153.0,0.00028892,2]
[330501157,1719521353835,-153.0,0.00028892,2]
[330501158,1719521353859,-153.0,0.00028892,2]
[330501159,1719521353880,-153.0,0.00028892,2]
[330501160,1719521353902,-153.0,0.00028892,2]
[330501161,1719521353924,-153.0,0.00028892,2]
[330501162,1719521353948,-153.0,0.00028892,2]
[330501163,1719521353970,-153.0,0.00028892,2]
[330501164,1719521353992,-153.0,0.00028892,2]
[330501165,1719521354013,-153.0,0.00028892,2]
[330501166,1719521354035,-153.0,0.00028892,2]
[330501167,1719521354059,-153.0,0.00028892,2]
[330501168,1719521354086,-153.0,0.00028892,2]
[330501169,1719521354109,-153.0,0.00028892,2]
[330501170,1719521354136,-153.0,0.00028892,2]
[330501171,1719521354159,-153.0,0.00028892,2]
[330501172,1719521354182,-153.0,0.00028892,2]
[330501173,1719521354203,-153.0,0.00028892,2]
[330501174,1719521354225,-153.0,0.00028892,2]
[330501175,1719521354247,-153.0,0.00028892,2]
[330501176,1719521354270,-153.0,0.00028892,2]
[330501177,1719521354291,-153.0,0.00028892,2]
[330501178,1719521354313,-153.0,0.00028892,2]
[330501179,1719521354335,-153.0,0.00028892,2]
[330501180,1719521354356,-153.0,0.00028892,2]
[330501181,1719521354378,-153.0,0.00028892,2]
[330501182,1719521354399,-153.0,0.00028892,2]
[330501183,1719521354420,-153.0,0.00028892,2]
[330501184,1719521354441,-153.0,0.00028892,2]
[330501185,1719521354463,-153.0,0.00028892,2]
[330501186,1719521354484,-153.0,0.00028892,2]
[330501187,1719521354505,-153.0,0.00028892,2]
[330501188,1719521354526,-153.0,0.00028892,2]
[330501189,1719521354547,-153.0,0.00028892,2]
[330501190,1719521354567,-153.0,0.00028892,2]
[330501191,1719521354587,-153.0,0.00028892,2]
[330501192,1719521354609,-153.0,0.00028892,2]
[330501193,1719521354630,-153.0,0.00028892,2]